lending/lending_fUSD_20251020
["ID","MTS","AMOUNT","RATE_DAILY","PERIOD"]
[391878026,1760948430985,-1375.98039206,0.00044622,120]
[391878027,1760948431021,-426.45140086,0.00044622,120]
[391878028,1760948431055,-24441.07209828,0.00044624,120]
[391878029,1760948431087,-1375.98039206,0.00044629,120]
[391878030,1760948431119,-277.06809705,0.00044631,120]
[391878031,1760948431153,-7640.85333991,0.00044631,120]
[391878032,1760948431185,-5131.65713655,0.00044632,120]
[391878033,1760948431217,-426.45140086,0.00044633,120]
[391878034,1760948431250,-5131.65713655,0.00044636,120]
[391878035,1760948431436,-277.06809705,0.00044643,120]
[391878036,1760948431472,-313.49739492,0.00044643,120]
[391878037,1760948431505,-277.06809705,0.00044643,120]
[391878038,1760948431538,-495.90209986,0.00044644,120]
[391878039,1760948431571,-1473.1957484,0.00044644,120]
[391878040,1760948431603,-2435.05537245,0.00044644,120]
[391878041,1760948431636,-5824.00014213,0.00044645,120]
[391878042,1760948431667,-9106.30048758,0.00044648,120]
[391878043,1760948431700,-5824.00014213,0.00044649,120]
[391878044,1760948431734,-24441.07209829,0.00044649,120]
[391878045,1760948431768,-32926.81533564,0.00044649,120]
[391878046,1760948431803,-35236.53647752,0.00044653,120]
[391878047,1760948431838,-495.90209986,0.00044655,120]
[391878048,1760948431873,-1375.98039207,0.00044659,120]
[391878049,1760948431910,-495.90209986,0.0004466,120]
[391878050,1760948431946,-395.56214054,0.00044661,120]
[391878051,1760948431985,-129313.36434649,0.00044661,120]
[391878052,1760948432023,-1126.90019393,0.00044663,120]
[391878053,1760948432059,-9106.30048758,0.00044663,120]
[391878054,1760948432094,-662.74705366,0.00044667,120]
[391878055,1760948432127,-727.29623081,0.00044667,120]
[391878056,1760948432162,-24441.07209829,0.00044669,120]
[391878057,1760948432195,-662.74705366,0.00044675,120]
[391878058,1760948432228,-1375.98039207,0.00044678,120]
[391878059,1760948432263,-24441.07209829,0.00044678,120]
[391878060,1760948432297,-1375.98039207,0.00044679,120]
[391878061,1760948432333,-413.49427679,0.0004468,120]
[391878062,1760948432368,-662.74705366,0.0004468,120]
[391878063,1760948432404,-213.85311753,0.0004468,120]
[391878064,1760948432438,-9106.30048758,0.00044682,120]
[391878065,1760948432473,-395.56214054,0.00044683,120]
[391878066,1760948432511,-727.29623081,0.0004469,120]
[391878067,1760948432550,-313.49739492,0.00044691,120]
[391878068,1760948432586,-7640.85333991,0.00044692,120]
[391878069,1760948432622,-277.06809705,0.00044693,120]
[391878070,1760948432663,-727.29623081,0.00044694,120]
[391878071,1760948432700,-5824.00014213,0.00044696,120]
[391878072,1760948432738,-7640.85333991,0.00044699,120]
[391878073,1760948432774,-3012.55868023,0.000448,120]
[391878074,1760948432810,-117569.87453345,0.000448,120]
[391878075,1760948432843,-498.94445822,0.0004489,60]
[391878076,1760948432877,-16000.0,0.00044898,120]
[391878077,1760948432913,-3098.45,0.000449,120]
[391878078,1760948432946,-150.0,0.000449,37]
[391878079,1760948432980,-171.66084634,0.000449,120]
[391878080,1760948433016,-171.66084634,0.000449,120]
[391878081,1760948433054,-3327.27,0.00044931,120]
[391878082,1760948433095,-150.0,0.0004499,120]
[391878083,1760948433132,-300.0,0.0004499,120]
[391878084,1760948433169,-351.8467115,0.0004499,120]
[391878085,1760948433208,-150.0,0.0004499,120]
[391878086,1760948433245,-150.0,0.0004499,120]
[391878087,1760948433282,-420.0,0.0004499,120]
[391878088,1760948433318,-259.033001,0.00044994,120]
[391878089,1760948433355,-1254.91939262,0.00044997,120]
[391878090,1760948433391,-805.79226078,0.00044997,120]
[391878091,1760948433428,-159.64237879,0.00044998,30]
[391878092,1760948433465,-1000.0,0.00044999,120]
[391878093,1760948433503,-1000.0,0.00044999,30]
[391878094,1760948433542,-50000.0,0.00045,45]
[391878095,1760948433579,-57721.54957099,0.00045,120]
[391878096,1760948433616,-1000000.0,0.00045,120]
[391878097,1760948433656,-427321.44584983,0.00045,120]
[391878098,1760948444129,-355.43854346,0.000337,120]
[391878099,1760948444171,-10091.11285638,0.000337,120]
[391878100,1760948444220,-151.0,0.00033972,30]
[391878101,1760948444261,-151.0,0.00033972,30]
[391878102,1760948444301,-151.0,0.00033972,30]
[391878103,1760948444339,-151.0,0.00033972,30]
[391878104,1760948444387,-151.0,0.00034119,30]
[391878105,1760948444431,-151.0,0.00034119,30]
[391878106,1760948444470,-198.359562,0.00034119,30]
[391878107,1760948444507,-153.179288,0.00034119,30]
[391878108,1760948444551,-151.0,0.00034208,30]
[391878109,1760948444598,-355.43854346,0.000347,120]
[391878110,1760948444635,-10091.11285638,0.000347,120]
[391878111,1760948444701,-355.43854346,0.000358,120]
[391878112,1760948444771,-10091.11285638,0.000358,120]
[391878113,1760948444848,-355.43854346,0.000368,120]
[391878114,1760948444916,-10091.11285638,0.000368,120]
[391878115,1760948444993,-355.43854346,0.000379,120]
[391878116,1760948445045,-10091.11285638,0.000379,120]
[391878117,1760948445092,-151.0,0.00038904,120]
[391878118,1760948445132,-10091.11285638,0.000391,120]
[391878119,1760948445178,-462.30045201,0.00039999,31]
[391878120,1760948445218,-175.01732786,0.00039999,31]
[391878121,1760948445256,-243.75123569,0.00039999,31]
[391878122,1760948445295,-9847.28678641,0.0004,120]
[391878123,1760948445335,-10091.11285638,0.000403,120]
[391878124,1760948445377,-10091.11285638,0.000415,120]
[391878125,1760948445416,-10091.11285638,0.000427,120]
[391878126,1760948445453,-600.0,0.00043799,120]
[391878127,1760948445490,-500.0,0.00043799,120]
[391878128,1760948445532,-250.0,0.00043799,120]
[391878129,1760948445569,-250.0,0.00043799,120]
[391878130,1760948445607,-250.0,0.00043799,120]
[391878131,1760948445644,-151.0,0.00043799,120]
[391878132,1760948445681,-600.0,0.00043799,120]
[391878133,1760948445718,-500.0,0.00043799,120]
[391878134,1760948445756,-250.0,0.00043799,120]
[391878135,1760948445794,-250.0,0.00043799,120]
[391878136,1760948446017,-250.0,0.00043799,120]
[391878137,1760948446062,-151.0,0.00043799,120]
[391878138,1760948446100,-600.0,0.00043799,120]
[391878139,1760948446137,-500.0,0.00043799,120]
[391878140,1760948446174,-250.0,0.00043799,120]
[391878141,1760948446214,-151.0,0.00043799,120]
[391878142,1760948446259,-500.0,0.00043799,120]
[391878143,1760948446299,-600.0,0.00043799,120]
[391878144,1760948446337,-326.38271018,0.00043799,120]
[391878145,1760948446375,-151.0,0.00043799,120]
[391878146,1760948446413,-500.0,0.00043799,120]
[391878147,1760948446447,-615.22713539,0.00043799,120]
[391878148,1760948446483,-151.0,0.00043799,120]
[391878149,1760948446519,-500.0,0.00043799,120]
[391878150,1760948446557,-151.0,0.00043799,120]
[391878151,1760948446596,-500.0,0.00043799,120]
[391878152,1760948446632,-250.0,0.00043799,120]
[391878153,1760948446673,-500.0,0.00043799,120]
[391878154,1760948446709,-250.0,0.00043799,120]
[391878155,1760948446746,-500.0,0.00043799,120]
[391878156,1760948446783,-250.0,0.00043799,120]
[391878157,1760948446820,-250.0,0.00043799,120]
[391878158,1760948446859,-250.0,0.00043799,120]
[391878159,1760948446895,-6888.0,0.00043799,120]
[391878160,1760948446935,-500.0,0.00043799,120]
[391878161,1760948446973,-152.90140094,0.00043799,120]
[391878162,1760948447011,-7142.856,0.00043799,120]
[391878163,1760948447049,-500.0,0.00043799,120]
[391878164,1760948447090,-7407.141672,0.00043799,120]
[391878165,1760948447129,-500.0,0.00043799,120]
[391878166,1760948447170,-7681.20591386,0.00043799,120]
[391878167,1760948447213,-500.0,0.00043799,120]
[391878168,1760948447250,-4399.42300598,0.00043799,120]
[391878169,1760948447286,-500.0,0.00043799,120]
[391878170,1760948447325,-500.0,0.00043799,120]
[391878171,1760948447365,-500.0,0.00043799,120]
[391878172,1760948447407,-500.0,0.00043799,120]
[391878173,1760948447448,-500.0,0.00043799,120]
[391878174,1760948447491,-10091.11285638,0.00044,120]
[391878175,1760948447531,-151.0,0.000444,120]
[391878176,1760948447568,-150.0,0.0004499,120]
[391878177,1760948447606,-572678.55415017,0.00045,120]
[391878178,1760948447642,-500.0,0.00045,30]
[391878179,1760948447678,-1514.0300488,0.00045,120]
[391878180,1760948447713,-900.0,0.00045,120]
[391878181,1760948447749,-214.6,0.00045,37]
[391878182,1760948447784,-608.57923765,0.00045,120]
[391878183,1760948447825,-10289.8058932,0.00045,120]
[391878184,1760948447860,-1219.6035491,0.00045,120]
[391878185,1760948447898,-2500.0,0.00045,30]
[391878186,1760948447934,-2321.5800754,0.00045,120]
[391878187,1760948447974,-1000.0,0.00045,120]
[391878188,1760948448010,-2770.45250323,0.00045,120]
[391878189,1760948448045,-1000000.0,0.00045,120]
[391878190,1760948448080,-1000.0,0.00045,30]
[391878191,1760948448116,-150.0,0.00045,90]
[391878192,1760948448152,-200.0,0.00045,120]
[391878193,1760948448189,-2125.40482845,0.00045,120]
[391878194,1760948448230,-2000.0,0.00045,30]
[391878195,1760948448270,-263.44204439,0.00045,120]
[391878196,1760948448312,-156.3,0.00045,85]
[391878197,1760948448352,-76987.9,0.00045,120]
[391878198,1760948448393,-4967.0,0.00045,120]
[391878199,1760948448437,-6320.1861837,0.00045,120]
[391878200,1760948448478,-9081.34337518,0.00045,120]
[391878201,1760948448517,-182.39642286,0.00045,120]
[391878202,1760948448555,-1500.41810543,0.00045,120]
[391878203,1760948448594,-270.74943002,0.00045,120]
[391878204,1760948448632,-239.64,0.00045,120]
[391878205,1760948448671,-3074.0,0.00045,120]
[391878206,1760948448710,-10000.0,0.00045,120]
[391878207,1760948448748,-31706.29583898,0.00045,120]
[391878208,1760948448786,-11481.89300952,0.00045,120]
[391878209,1760948448823,-251.48337366,0.00045,120]
[391878210,1760948448861,-150.0,0.00045,50]
[391878211,1760948448901,-25267.87,0.00045,120]
[391878212,1760948448940,-150.0,0.00045,120]
[391878213,1760948448979,-15030.87,0.00045,120]
[391878214,1760948449018,-2500.0,0.00045,120]
[391878215,1760948449058,-1091.0,0.00045,30]
[391878216,1760948449096,-1000000.0,0.0004501,120]
[391878217,1760948449136,-794.40657496,0.0004502,34]
[391878218,1760948449174,-1000000.0,0.0004502,120]
[391878219,1760948449211,-1000000.0,0.00045025,120]
[391878220,1760948449251,-31343.84158388,0.0004503,120]
[391878221,1760948451991,415.38,0.00013699,2]
[391878225,1760948473686,-151.0,0.00033972,30]
[391878226,1760948473725,-151.0,0.00034119,30]
[391878227,1760948473762,-163.027161,0.00034119,30]
[391878228,1760948473805,-151.0,0.00034208,30]
[391878229,1760948473882,-188.06591066,0.000372,120]
[391878230,1760948473937,-151.812301,0.00038904,120]
[391878231,1760948473981,-1229.54,0.00044315,120]
[391878232,1760948474018,-2093.25,0.0004475,120]
[391878233,1760948474054,-895.96,0.0004478,120]
[391878234,1760948474088,-2070.36,0.0004478,120]
[391878235,1760948474122,-887.3,0.0004478,120]
[391878236,1760948474156,-195.07920566,0.0004478,120]
[391878237,1760948474192,-171.66084636,0.000449,120]
[391878238,1760948474227,-212000.0,0.00045,120]
[391878239,1760948474262,-500.0,0.00045029,120]
[391878240,1760948474295,-500.0,0.00045029,120]
[391878241,1760948474328,-500.0,0.00045029,120]
[391878242,1760948474363,-500.0,0.00045029,120]
[391878243,1760948474397,-500.0,0.00045029,120]
[391878244,1760948474431,-500.0,0.00045029,120]
[391878245,1760948474467,-500.0,0.00045029,120]
[391878246,1760948474501,-250.0,0.00045029,120]
[391878247,1760948474534,-500.0,0.00045029,120]
[391878248,1760948474566,-500.0,0.00045029,120]
[391878249,1760948474598,-500.0,0.00045029,120]
[391878250,1760948474631,-500.0,0.00045029,120]
[391878251,1760948474666,-968656.15841612,0.0004503,120]
[391878252,1760948474699,-410028.0,0.0004504,120]
[391878253,1760948474736,-1064.0,0.00045049,30]
[391878254,1760948474772,-476.27249038,0.00045049,30]
[391878255,1760948474808,-657463.59693389,0.0004505,120]
[391878256,1760948474843,-1000000.0,0.0004505,120]
[391878257,1760948474881,-1000000.0,0.0004505,120]
[391878258,1760948474916,-736062.91673493,0.00045075,120]
[391878259,1760948486920,-272.454876,0.00033972,30]
[391878260,1760948486960,-151.0,0.00034119,30]
[391878261,1760948487000,-151.0,0.00034119,30]
[391878262,1760948487044,-151.0,0.00034208,30]
[391878263,1760948487143,-1199.86,0.00044315,120]
[391878264,1760948487181,-1199.86,0.00044315,120]
[391878265,1760948487218,-2947.96321924,0.0004478,120]
[391878266,1760948487254,-153.117578,0.0004503,120]
[391878267,1760948487288,-263937.08326507,0.00045075,120]
[391878268,1760948487321,-1000000.0,0.00045075,120]
[391878269,1760948487357,-10091.11285638,0.000453,120]
[391878270,1760948487388,-500.0,0.00045342,60]
[391878271,1760948487419,-6943.25331609,0.00045431,120]
[391878272,1760948487452,-1000.0,0.00045466,60]
[391878273,1760948487484,-1064.0,0.000455,30]
[391878274,1760948487517,-50000.0,0.000455,32]
[391878275,1760948487552,-1284303.3873737,0.000458,120]
[391878276,1760948487598,-1000.0,0.0004588,120]
[391878277,1760948487634,-1064.0,0.0004595,30]
[391878278,1760948487668,-50000.0,0.00046,32]
[391878279,1760948487703,-401.2,0.00046,120]
[391878280,1760948487741,-248.79838826,0.00046,120]
[391878281,1760948487777,-1000.0,0.00046,30]
[391878282,1760948487811,-203.9378889,0.00046,30]
[391878283,1760948487847,-2167.80481571,0.00046,120]
[391878284,1760948487881,-3195.60351826,0.00046,30]
[391878285,1760948487920,-1000.0,0.00046,120]
[391878286,1760948487956,-200.0,0.00046,120]
[391878287,1760948487992,-642.21298625,0.00046,120]
[391878288,1760948488029,-1166343.12171522,0.00046,120]
[391878289,1760948488065,-19112.94,0.00046,30]
[391878290,1760948488101,-1129355.28820292,0.00046,120]
[391878291,1760948493122,-151.0,0.00034119,30]
[391878292,1760948493165,-151.0,0.00034119,30]
[391878293,1760948493214,-151.0,0.00034208,30]
[391878294,1760948493254,-159.28944,0.00034208,30]
[391878295,1760948493292,-151.0,0.00034208,30]
[391878296,1760948493531,-2500.0,0.0004,120]
[391878297,1760948493571,-2500.0,0.000405,120]
[391878298,1760948493608,-2500.0,0.00041,120]
[391878299,1760948493644,-2500.0,0.000415,120]
[391878300,1760948493679,-2500.0,0.00042,120]
[391878301,1760948493717,-2500.0,0.000425,120]
[391878302,1760948493755,-1199.86,0.00044315,120]
[391878303,1760948493791,-2137.62,0.00044825,120]
[391878304,1760948493826,-151329.50433203,0.00045,30]
[391878305,1760948493860,-151.0,0.0004503,120]
[391878306,1760948493893,-151.0,0.0004503,120]
[391878307,1760948493929,-151.0,0.0004505,120]
[391878308,1760948493966,-151.0,0.00045075,120]
[391878309,1760948494003,-370644.71179708,0.00046,120]
[391878310,1760948494039,-1000000.0,0.00046,120]
[391878311,1760948494074,-2690.36941638,0.00046,120]
[391878312,1760948494110,-1161.76433931,0.00046,120]
[391878313,1760948494144,-510.20966762,0.0004613,120]
[391878314,1760948494180,-161.098,0.00046138,120]
[391878315,1760948494215,-161.098,0.00046138,120]
[391878316,1760948494249,-161.099,0.00046138,120]
[391878317,1760948494285,-161.098,0.00046138,120]
[391878318,1760948494323,-161.099,0.00046138,120]
[391878319,1760948494360,-1486.07061528,0.000464,120]
[391878320,1760948494398,-1064.0,0.00046401,30]
[391878321,1760948494436,-500.0,0.00046438,60]
[391878322,1760948494477,-1000.0,0.00046466,60]
[391878323,1760948494515,-3154.34719651,0.0004649,120]
[391878324,1760948494551,-50000.0,0.000465,33]
[391878325,1760948494590,-447.03748376,0.000466,120]
[391878326,1760948494627,-1528.0,0.000466,120]
[391878327,1760948494664,-1527.0,0.000466,120]
[391878328,1760948494701,-10091.11285638,0.000467,120]
[391878329,1760948494740,-701.60390614,0.000468,120]
[391878330,1760948494778,-1365.23365084,0.000469,120]
[391878331,1760948494812,-50000.0,0.00047,34]
[391878332,1760948494846,-608.76163674,0.00047,30]
[391878333,1760948494880,-3695.83124645,0.00047,120]
[391878334,1760948494914,-1000.0,0.00047,120]
[391878335,1760948494949,-200.0,0.00047,120]
[391878336,1760948494985,-4967.0,0.00047,120]
[391878337,1760948495022,-1000000.0,0.00047,120]
[391878338,1760948495059,-500.0,0.00047,120]
[391878339,1760948495096,-150.0,0.00047,120]
[391878340,1760948495130,-150.0,0.00047,120]
[391878341,1760948495163,-700.0,0.00047,120]
[391878342,1760948495195,-150.0,0.00047,120]
[391878343,1760948495228,-1091.0,0.0004725,30]
[391878344,1760948495262,-153.0,0.000474,120]
[391878345,1760948495295,-1000.0,0.00047466,60]
[391878346,1760948495327,-56000.0,0.000475,35]
[391878347,1760948495360,-580.03541172,0.000475,120]
[391878348,1760948495390,-150.56305535,0.000475,120]
[391878349,1760948495421,-500.0,0.00047534,60]
[391878350,1760948495454,-156.0,0.000477,120]
[391878351,1760948495489,-759.81836648,0.00047873,30]
[391878352,1760948495522,-945.69717858,0.00047873,30]
[391878353,1760948495556,-2000.0,0.0004789,59]
[391878354,1760948495763,2500.0,0.00043,120]
[391878355,1760948495830,2500.0,0.000435,120]
[391878356,1760948495889,2500.0,0.00044,120]
[391878357,1760948495944,2500.0,0.000445,120]
[391878358,1760948495999,2500.0,0.00045,120]
[391878359,1760948496413,1193.49,0.00044315,120]
[391878360,1760948497324,151.0,0.00034119,30]
[391878361,1760948497646,260.245038,0.00034208,30]
[391878362,1760948498296,1000000.0,0.00045,120]
[391878363,1760948500351,182.72488204,0.00043405,60]
[391878364,1760948500749,363.36334644,0.0004575,120]
[391878365,1760948502543,827.23759202,0.0004575,120]
[391878366,1760948502648,300000.0,0.00045,120]
[391878367,1760948502687,500.0,0.00043405,60]
[391878368,1760948503398,500.0,0.00044501,60]
[391878369,1760948503995,500.0,0.00045597,60]
[391878370,1760948504624,313.44831549,0.00046693,60]
[391878371,1760948563458,214.6,0.00034119,30]
[391878374,1760948601348,500.0,0.00026005,120]
[391878375,1760948622826,1000.0,0.00034119,30]
[391878376,1760948635569,1000.0,0.00034119,30]
[391878377,1760948644364,411.80132182,0.00034119,120]
[391878378,1760948648311,1000.0,0.00034119,60]
[391878379,1760948661052,1000.0,0.00034119,30]
[391878380,1760948673798,1000.0,0.00034119,60]
[391878389,1760948686657,1000.0,0.00034151,60]
[391878390,1760948688232,150.5,0.0002689,120]
[391878391,1760948688928,150.5,0.0002688,120]
[391878392,1760948689373,247.37,0.0002687,120]
[391878393,1760948699388,1000.0,0.00034151,30]
[391878394,1760948712177,1000.0,0.00034151,30]
[391878395,1760948724931,1000.0,0.00034151,30]
[391878396,1760948727150,428.66142739,0.0003013,120]
[391878398,1760948737677,1000.0,0.00034151,30]
[391878399,1760948750397,1000.0,0.00034151,60]
[391878405,1760948763126,1000.0,0.00034151,30]
[391878406,1760948775868,1000.0,0.00034151,60]
[391878407,1760948788636,1006.44,0.00034151,30]
[391878423,1760948890087,626.83259152,0.000287,120]
[391878434,1760948916388,150.20242503,0.00034151,120]
[391878472,1760949031924,-1650.0,0.000149,2]
[391878490,1760949032087,-5598.01350126,0.000149,2]
[391878492,1760949032099,-250.0,0.0001493,2]
[391878494,1760949032109,-300.0,0.00014959,2]
[391878496,1760949032118,-300.0,0.00014959,2]
[391878498,1760949032128,-1200.0,0.00014959,2]
[391878500,1760949032137,-300.0,0.00014959,2]
[391878502,1760949032147,-6224.50777122,0.0001496,2]
[391878504,1760949032156,-250.0,0.00014963,2]
[391878506,1760949032165,-500.94760178,0.00014973,2]
[391878508,1760949032175,-500.0,0.00014973,2]
[391878510,1760949032184,-500.5325471,0.00014973,2]
[391878512,1760949032192,-500.0,0.00014973,2]
[391878514,1760949032201,-500.0,0.00014973,2]
[391878516,1760949032210,-273.48848073,0.00014973,2]
[391878518,1760949032219,-500.0,0.00014973,2]
[391878520,1760949032229,-502.86355596,0.00014973,2]
[391878521,1760949032238,-506.51925215,0.00014973,2]
[391878523,1760949032247,-500.0,0.00014973,2]
[391878524,1760949032256,-1200.0,0.00014998,2]
[391878525,1760949032265,-243.75123569,0.00014999,2]
[391878526,1760949032275,-462.30045201,0.00014999,2]
[391878527,1760949032284,-175.01732786,0.00014999,2]
[391878528,1760949032293,-500.0,0.00014999,2]
[391878529,1760949032302,-354.64895154,0.00014999,2]
[391878530,1760949032311,-500.0,0.00014999,2]
[391878531,1760949032321,-21351.44437151,0.00015,2]
[391878532,1760949032332,-382.35999,0.00015,2]
[391878533,1760949032344,-420.0,0.00015,2]
[391878534,1760949032355,-2473.6243003,0.00015,2]
[391878535,1760949032366,-515.71559737,0.00015,2]
[391878536,1760949032377,-2172.30999241,0.00015,2]
[391878547,1760949037968,-167.38214396,0.0001496,2]
[391878548,1760949037978,-184.21403752,0.00015,2]
[391878549,1760949037993,-1391.3941825,0.00015,2]
[391878550,1760949038004,-1608.50806207,0.00015,2]
[391878551,1760949038016,-1844.96146813,0.00015,2]
[391878552,1760949038040,-13030.29069459,0.00015,2]
[391878553,1760949038080,-272.36141139,0.00015,2]
[391878555,1760949038145,-20724.95462058,0.00015,2]
[391878752,1760949040001,-239701.25492786,0.00015,2]
[391878754,1760949040010,-50858.44227582,0.00015,2]
[391878756,1760949040019,-24865.05280638,0.00015,2]
[391878758,1760949040035,-166.66,0.0001506,2]
[391878760,1760949040043,-1517.64,0.000153,2]
[391878762,1760949040053,-151.0,0.00015308,2]
[391878764,1760949040063,-166.66,0.00015377,2]
[391878766,1760949040073,-1000.0,0.00015521,2]
[391878768,1760949040083,-463.31724315,0.00015521,2]
[391878770,1760949040092,-1102.41010152,0.00015521,2]
[391878772,1760949040103,-1109.31961018,0.00015521,2]
[391878774,1760949040112,-166.66,0.00015694,2]
[391878776,1760949040121,-9999.99,0.00015694,2]
[391878778,1760949040131,-160.0,0.00015765,2]
[391878780,1760949040140,-448.93019671,0.00015883,2]
[391878782,1760949040149,-250.0,0.00015887,7]
[391878784,1760949040159,-1852.42,0.00015902,2]
[391878786,1760949040169,-166.66,0.00016011,2]
[391878788,1760949040178,-2431.3225,0.00016016,2]
[391878790,1760949040187,-3213.37,0.00016025,2]
[391878792,1760949040196,-1500.0,0.00016068,2]
[391878794,1760949040205,-10648.2,0.00016154,2]
[391878796,1760949040215,-10855.0846551,0.00016172,2]
[391878798,1760949040224,-1558.76,0.00016178,2]
[391878800,1760949040233,-25591.62994034,0.000162,5]
[391878802,1760949040243,-200.0,0.00016307,2]
[391878804,1760949040252,-166.66,0.00016328,2]
[391878806,1760949040261,-300.0,0.00016372,2]
[391878808,1760949040271,-300.0,0.0001639,2]
[391878810,1760949040280,-250.0,0.0001639,2]
[391878829,1760949040444,-299.44006008,0.00016428,2]
[391878831,1760949040454,-200.0,0.00016438,2]
[391878833,1760949040463,-744.56764,0.00016438,2]
[391878835,1760949040472,-88166.34,0.00016438,2]
[391878837,1760949040481,-166.66,0.0001644,2]
[391878839,1760949040490,-162.89,0.0001644,2]
[391878841,1760949040499,-1680.0,0.00016455,2]
[391878843,1760949040508,-174.29158633,0.00016456,2]
[391878845,1760949040518,-500.0,0.00016473,2]
[391878847,1760949040527,-500.0,0.00016473,2]
[391878849,1760949040536,-500.0,0.00016473,2]
[391878851,1760949040545,-167.12,0.00016474,2]
[391878853,1760949040554,-2000.0,0.00016499,2]
[391878855,1760949040562,-301.17,0.000165,2]
[391878857,1760949040571,-1009.0,0.000165,2]
[391878859,1760949040580,-606.0,0.00016507,2]
[391878860,1760949040591,-230.0,0.00016562,2]
[391878863,1760949040600,-489.0,0.00016587,2]
[391878865,1760949040610,-225.32,0.0001659,2]
[391878866,1760949040619,-1000.0,0.000166,2]
[391878868,1760949040628,-200.0,0.00016602,2]
[391878870,1760949040637,-2103.08173544,0.00016616,2]
[391878872,1760949040646,-166.66,0.00016645,2]
[391878874,1760949040655,-606.0,0.0001665,2]
[391878876,1760949040665,-230.0,0.0001667,2]
[391878878,1760949040674,-606.0,0.00016679,2]
[391878880,1760949040683,-744.56764,0.0001669,2]
[391878882,1760949040692,-2098.0,0.00016691,2]
[391878884,1760949040701,-500.0,0.00016698,2]
[391878886,1760949040710,-150.0,0.00016698,2]
[391878888,1760949040720,-150.0,0.00016698,2]
[391878890,1760949040729,-500.0,0.00016698,2]
[391878892,1760949040738,-164.61251078,0.00016698,2]
[391878894,1760949040747,-606.0,0.00016699,2]
[391878896,1760949040756,-500.0,0.00016753,2]
[391878899,1760949040765,-150.0,0.00016753,2]
[391878901,1760949040775,-150.0,0.00016753,2]
[391878902,1760949040784,-500.0,0.00016753,2]
[391878903,1760949040793,-200.0,0.00016768,2]
[391878904,1760949040802,-606.0,0.00016797,2]
[391878905,1760949040812,-500.0,0.00016808,2]
[391878906,1760949040821,-181.0,0.00016808,2]
[391878907,1760949040830,-263.73387382,0.00016808,2]
[391878908,1760949040839,-500.0,0.00016808,2]
[391878909,1760949040848,-230.0,0.00016823,2]
[391878910,1760949040858,-500.0,0.00016862,2]
[391878912,1760949040867,-500.0,0.00016862,2]
[391878914,1760949040876,-3.90713561,0.00016899,2]
[391878917,1760949040888,-2526.62246999,0.00016899,2]
[391878919,1760949040898,-21831.25693993,0.000169,2]
[391878921,1760949040909,-2811.45,0.000169,2]
[391878923,1760949040921,-3979.34999981,0.000169,2]
[391878926,1760949040937,-150.0,0.00016698,2]
[391878928,1760949040946,-1904.86838987,0.000169,2]
[391878951,1760949041159,-3.06508193,0.000169,2]
[391878953,1760949041172,-1074.3,0.000169,2]
[391878955,1760949041184,-5066.05923459,0.000169,2]
[391878958,1760949041195,-11914.712,0.000169,2]
[391878960,1760949041206,-3770.90089442,0.000169,2]
[391878963,1760949041225,-10738.434,0.000169,2]
[391879157,1760949043070,-150.0,0.00016753,2]
[391879159,1760949043079,-150.0,0.00016808,2]
[391879161,1760949043089,-150.0,0.00016808,2]
[391879163,1760949043098,-150.0,0.00016862,2]
[391879166,1760949043108,-12.29000823,0.00016863,2]